fUST/lending_fUST_20250724
["ID","MTS","AMOUNT","RATE_DAILY","PERIOD"]
[374438061,1753300776870,150.0,0.00021648,30]
[374438062,1753300777267,159.89,0.00022632,30]
[374438063,1753300783007,273.552831,0.00013699,2]
[374438076,1753300856824,150.0,0.00020672,30]
[374438077,1753300857212,150.0,0.00021656,30]
[374438078,1753300857624,152.37,0.0002264,30]
[374438085,1753300939041,150.0,0.00020676,30]
[374438086,1753300940266,150.0,0.00021661,30]
[374438087,1753300941146,150.0,0.00022645,30]
[374438089,1753301027256,150.0,0.00020785,30]
[374438090,1753301027645,150.0,0.00021775,30]
[374438091,1753301028149,150.0,0.00022765,30]
[374438093,1753301113183,150.0,0.00020544,30]
[374438094,1753301113606,150.0,0.00021523,30]
[374438095,1753301114014,150.0,0.00022501,30]
[374438096,1753301140124,-150.78790244,0.00019178,2]
[374438097,1753301142083,-27.88451056,0.00019178,2]
[374438098,1753301142103,-495.2433917,0.00019178,2]
[374438099,1753301142123,-666.0,0.00019178,2]
[374438100,1753301142142,-392.03976384,0.00019674,2]
[374438101,1753301142162,-300.0,0.00019756,2]
[374438102,1753301142182,-214.0,0.00019756,2]
[374438103,1753301142205,-94.24408102,0.00019757,2]
[374438111,1753301195227,150.0,0.0002072,30]
[374438112,1753301195621,150.0,0.00021706,30]
[374438113,1753301196112,150.0,0.00022693,30]
[374438114,1753301226115,-335.5229021,0.00019657,2]
[374438116,1753301249091,-118.75821344,0.00019657,2]
[374438117,1753301249115,-474.5056765,0.00019752,3]
[374438119,1753301283674,150.0,0.00020699,30]
[374438120,1753301284084,150.0,0.00021685,30]
[374438121,1753301284489,150.0,0.0002267,30]
[374438122,1753301363564,150.0,0.00020695,30]
[374438123,1753301364000,150.0,0.0002168,30]
[374438124,1753301364402,150.0,0.00022666,30]
[374438164,1753301432004,-293.65114849,0.00019752,3]
[374438165,1753301432016,-44.40317501,0.00019752,3]
[374438166,1753301432025,-300.0,0.00019754,2]
[374438168,1753301432034,-157.0,0.00019754,2]
[374438169,1753301432044,-387.03561565,0.00019754,2]
[374438172,1753301432058,-72.96438435,0.00019754,2]
[374438173,1753301432067,-460.0,0.00019754,2]
[374438175,1753301432076,-500.0,0.00019755,2]
[374438177,1753301432085,-500.0,0.00019755,2]
[374438179,1753301432094,-500.0,0.00019755,2]
[374438181,1753301432104,-500.0,0.00019755,2]
[374438182,1753301432113,-500.0,0.00019755,2]
[374438184,1753301432123,-500.0,0.00019755,2]
[374438186,1753301432132,-500.0,0.00019755,2]
[374438187,1753301432142,-500.0,0.00019755,2]
[374438189,1753301432151,-500.0,0.00019755,2]
[374438190,1753301432160,-500.0,0.00019755,2]
[374438192,1753301432170,-500.0,0.00019755,2]
[374438193,1753301432179,-500.0,0.00019755,2]
[374438195,1753301432189,-500.0,0.00019755,2]
[374438197,1753301432198,-500.0,0.00019755,2]
[374438199,1753301432207,-500.0,0.00019755,2]
[374438201,1753301432216,-500.0,0.00019755,2]
[374438202,1753301432225,-449.3186672,0.00019755,2]
[374438203,1753301432235,-500.0,0.00019755,2]
[374438205,1753301432244,-500.0,0.00019755,2]
[374438207,1753301432253,-500.0,0.00019755,2]
[374438209,1753301432263,-500.0,0.00019755,2]
[374438211,1753301432272,-500.0,0.00019755,2]
[374438212,1753301432282,-500.0,0.00019755,2]
[374438214,1753301432291,-500.0,0.00019755,2]
[374438215,1753301432300,-500.0,0.00019755,2]
[374438216,1753301432310,-610.69916553,0.00019755,2]
[374438217,1753301432319,-500.0,0.00019755,2]
[374438218,1753301432329,-361.50610258,0.00019755,2]
[374438219,1753301432341,-138.49389742,0.00019755,2]
[374438220,1753301432351,-500.0,0.00019755,2]
[374438221,1753301432360,-500.0,0.00019755,2]
[374438222,1753301432370,-500.0,0.00019755,2]
[374438223,1753301432379,-500.0,0.00019755,2]
[374438224,1753301432389,-500.0,0.00019755,2]
[374438225,1753301432398,-500.0,0.00019755,2]
[374438226,1753301432408,-500.0,0.00019755,2]
[374438227,1753301432418,-408.01289172,0.00019755,2]
[374438228,1753301432428,-500.0,0.00019755,2]
[374438229,1753301432440,-352.95928227,0.00019755,2]
[374438230,1753301432450,-500.0,0.00019755,2]
[374438231,1753301432459,-500.0,0.00019755,2]
[374438232,1753301432468,-500.0,0.00019755,2]
[374438233,1753301432478,-500.0,0.00019755,2]
[374438234,1753301432487,-500.0,0.00019755,2]
[374438235,1753301432496,-500.0,0.00019755,2]
[374438236,1753301432505,-500.0,0.00019755,2]
[374438237,1753301432516,-500.0,0.00019755,2]
[374438238,1753301432526,-500.0,0.00019755,2]
[374438239,1753301432535,-500.0,0.00019755,2]
[374438240,1753301432545,-500.0,0.00019755,2]
[374438241,1753301432554,-227.00950206,0.00019755,2]
[374438242,1753301432563,-500.0,0.00019755,2]
[374438243,1753301432572,-500.0,0.00019755,2]
[374438244,1753301432582,-500.0,0.00019755,2]
[374438245,1753301432591,-500.0,0.00019755,2]
[374438246,1753301432600,-500.0,0.00019755,2]
[374438247,1753301432610,-500.0,0.00019755,2]
[374438248,1753301432619,-500.0,0.00019755,2]
[374438249,1753301432628,-500.0,0.00019755,2]
[374438250,1753301432638,-500.0,0.00019755,2]
[374438251,1753301432647,-500.0,0.00019755,2]
[374438252,1753301432657,-500.0,0.00019755,2]
[374438253,1753301432666,-500.0,0.00019755,2]
[374438254,1753301432676,-500.0,0.00019755,2]
[374438255,1753301432685,-500.0,0.00019755,2]
[374438256,1753301432695,-500.0,0.00019755,2]
[374438257,1753301432704,-500.0,0.00019755,2]
[374438258,1753301432713,-500.0,0.00019755,2]
[374438259,1753301432723,-211.73565843,0.00019755,2]
[374438260,1753301432735,-288.26434157,0.00019755,2]
[374438261,1753301432744,-500.0,0.00019755,2]
[374438262,1753301432753,-390.27818324,0.00019755,2]
[374438296,1753301438144,-109.72181676,0.00019755,2]
[374438298,1753301438154,-500.0,0.00019755,2]
[374438300,1753301438164,-500.0,0.00019755,2]
[374438303,1753301438176,-500.0,0.00019755,2]
[374438304,1753301438186,-500.0,0.00019755,2]
[374438306,1753301438195,-500.0,0.00019755,2]
[374438307,1753301438204,-500.0,0.00019755,2]
[374438309,1753301438213,-500.0,0.00019755,2]
[374438312,1753301438223,-500.0,0.00019755,2]
[374438314,1753301438232,-500.0,0.00019755,2]
[374438317,1753301438242,-500.0,0.00019755,2]
[374438318,1753301438251,-500.0,0.00019755,2]
[374438319,1753301438260,-500.0,0.00019755,2]
[374438320,1753301438269,-500.0,0.00019755,2]
[374438321,1753301438278,-500.0,0.00019755,2]
[374438322,1753301438288,-500.0,0.00019755,2]
[374438323,1753301438298,-500.0,0.00019755,2]
[374438324,1753301438307,-500.0,0.00019755,2]
[374438325,1753301438316,-500.0,0.00019755,2]
[374438326,1753301438326,-500.0,0.00019755,2]
[374438327,1753301438335,-500.0,0.00019755,2]
[374438328,1753301438346,-500.0,0.00019755,2]
[374438329,1753301438355,-500.0,0.00019755,2]
[374438331,1753301438364,-500.0,0.00019755,2]
[374438332,1753301438375,-500.0,0.00019755,2]
[374438333,1753301438384,-500.0,0.00019755,2]
[374438334,1753301438393,-179.31651856,0.00019755,2]
[374438335,1753301438419,-320.68348144,0.00019755,2]
[374438336,1753301438431,-500.0,0.00019755,2]
[374438337,1753301438445,-500.0,0.00019755,2]
[374438338,1753301438455,-500.0,0.00019755,2]
[374438339,1753301438464,-500.0,0.00019755,2]
[374438340,1753301438474,-418.70781444,0.00019755,2]
[374438341,1753301438483,-500.0,0.00019755,2]
[374438342,1753301438493,-500.0,0.00019755,2]
[374438343,1753301438503,-500.0,0.00019755,2]
[374438344,1753301438515,-550.0,0.00019755,2]
[374438345,1753301438524,-500.0,0.00019755,2]
[374438346,1753301438533,-500.0,0.00019755,2]
[374438347,1753301438543,-500.0,0.00019755,2]
[374438348,1753301438552,-500.0,0.00019755,2]
[374438349,1753301438564,-500.0,0.00019755,2]
[374438350,1753301438574,-500.0,0.00019755,2]
[374438351,1753301438583,-460.0,0.00019756,2]
[374438352,1753301438591,-598.0,0.00019756,2]
[374438353,1753301438602,-460.0,0.00019756,2]
[374438354,1753301438611,-460.0,0.00019756,2]
[374438355,1753301438621,-460.0,0.00019756,2]
[374438356,1753301438631,-460.0,0.00019756,2]
[374438357,1753301438640,-460.0,0.00019756,2]
[374438358,1753301438650,-767.37,0.00019756,2]
[374438359,1753301438660,-460.0,0.00019756,2]
[374438360,1753301438669,-7770.53507149,0.00019756,2]
[374438361,1753301438682,-460.0,0.00019757,2]
[374438362,1753301438691,-460.0,0.00019757,2]
[374438363,1753301438701,-460.0,0.00019757,2]
[374438364,1753301438710,-460.0,0.00019757,2]
[374438365,1753301438719,-460.0,0.00019757,2]
[374438366,1753301438737,-460.0,0.00019757,2]
[374438367,1753301438749,-540.31139142,0.00019757,2]
[374438368,1753301438759,-705.69,0.00019757,2]
[374438369,1753301438770,-460.0,0.00019757,2]
[374438370,1753301438779,-460.0,0.00019757,2]
[374438371,1753301438790,-460.0,0.00019757,2]
[374438372,1753301438802,-396.39423654,0.00019757,2]
[374438373,1753301438812,-1350.47,0.00019757,2]
[374438374,1753301438823,-341.62659241,0.00019757,2]
[374438375,1753301438833,-661.67,0.00019757,2]
[374438376,1753301438843,-460.0,0.00019757,2]
[374438377,1753301438854,-460.0,0.00019757,2]
[374438378,1753301438864,-460.0,0.00019757,2]
[374438380,1753301438875,-469.74,0.00019757,2]
[374438382,1753301438885,-895.64,0.00019757,2]
[374438384,1753301438894,-460.0,0.00019757,2]
[374438385,1753301438904,-460.0,0.00019757,2]
[374438386,1753301438913,-460.0,0.00019757,2]
[374438387,1753301438923,-460.0,0.00019757,2]
[374438388,1753301438933,-460.0,0.00019757,2]
[374438389,1753301438942,-460.0,0.00019757,2]
[374438390,1753301438953,-460.0,0.00019757,2]
[374438391,1753301438964,-460.0,0.00019757,2]
[374438392,1753301438975,-460.0,0.00019757,2]
[374438393,1753301438986,-472.98111678,0.00019758,2]
[374438394,1753301438995,-386.54041967,0.00019758,2]
[374438395,1753301439005,-460.0,0.00019758,2]
[374438396,1753301439015,-460.0,0.00019758,2]
[374438397,1753301439026,-460.0,0.00019758,2]
[374438398,1753301439036,-460.0,0.00019758,2]
[374438399,1753301439047,-460.0,0.00019758,2]
[374438400,1753301439059,-460.0,0.00019758,2]
[374438401,1753301439068,-460.0,0.00019758,2]
[374438402,1753301439078,-460.0,0.00019758,2]
[374438403,1753301439088,-460.0,0.00019758,2]
[374438404,1753301439098,-462.14548734,0.00019758,2]
[374438405,1753301439107,-460.0,0.00019758,2]
[374438406,1753301439119,-460.0,0.00019758,2]
[374438407,1753301439130,-460.0,0.00019758,2]
[374438408,1753301439139,-469.26217849,0.00019758,2]
[374438409,1753301439150,-460.0,0.00019758,2]
[374438410,1753301439159,-460.0,0.00019758,2]
[374438411,1753301439169,-460.0,0.00019758,2]
[374438412,1753301439179,-460.0,0.00019758,2]
[374438413,1753301439189,-460.0,0.00019758,2]
[374438414,1753301439198,-500.0,0.00019758,2]
[374438415,1753301439208,-460.0,0.00019758,2]
[374438416,1753301439218,-460.0,0.00019758,2]
[374438417,1753301439228,-460.0,0.00019758,2]
[374438418,1753301439237,-460.0,0.00019758,2]
[374438419,1753301439247,-460.0,0.00019758,2]
[374438420,1753301439257,-460.0,0.00019758,2]
[374438421,1753301439267,-460.0,0.00019758,2]
[374438422,1753301439277,-460.0,0.00019758,2]
[374438423,1753301439287,-460.0,0.00019758,2]
[374438424,1753301439298,-460.0,0.00019758,2]
[374438425,1753301439307,-460.0,0.00019758,2]
[374438426,1753301439317,-460.0,0.00019758,2]
[374438427,1753301439327,-460.0,0.00019758,2]
[374438428,1753301439338,-460.0,0.00019758,2]
[374438429,1753301439347,-460.0,0.00019758,2]
[374438430,1753301439357,-460.0,0.00019758,2]
[374438431,1753301439367,-460.0,0.00019758,2]
[374438432,1753301439376,-364.55745297,0.00019758,2]
[374438433,1753301439385,-460.0,0.00019758,2]
[374438434,1753301439395,-460.0,0.00019758,2]
[374438435,1753301439405,-460.0,0.00019758,2]
[374438436,1753301439414,-460.0,0.00019758,2]
[374438437,1753301439424,-460.0,0.00019758,2]
[374438438,1753301439435,-460.0,0.00019758,2]
[374438439,1753301439450,-460.0,0.00019758,2]
[374438441,1753301439460,-460.0,0.00019758,2]
[374438442,1753301439470,-460.0,0.00019758,2]
[374438443,1753301439481,-460.0,0.00019758,2]
[374438444,1753301439491,-460.0,0.00019759,2]
[374438445,1753301439500,-460.0,0.00019759,2]
[374438446,1753301439510,-539.16,0.00019759,2]
[374438447,1753301439520,-460.0,0.00019759,2]
[374438448,1753301439529,-460.0,0.0001976,2]
[374438449,1753301439539,-460.0,0.0001976,2]
[374438450,1753301439548,-460.0,0.0001976,2]
[374438451,1753301439557,-460.0,0.00019761,2]
[374438452,1753301439566,-460.0,0.00019761,2]
[374438453,1753301439575,-460.0,0.00019761,2]
[374438454,1753301439583,-460.0,0.00019761,2]
[374438455,1753301439593,-460.0,0.00019761,2]
[374438456,1753301439603,-460.0,0.00019761,2]
[374438457,1753301439612,-460.0,0.00019761,2]
[374438459,1753301439621,-460.0,0.00019761,2]
[374438460,1753301439631,-460.0,0.00019761,2]
[374438461,1753301439640,-460.0,0.00019761,2]
[374438462,1753301439649,-460.0,0.00019761,2]
[374438463,1753301439659,-460.0,0.00019761,2]
[374438464,1753301439668,-460.0,0.00019761,2]
[374438465,1753301439678,-460.0,0.00019761,2]
[374438466,1753301439687,-460.0,0.00019761,2]
[374438467,1753301439696,-460.0,0.00019761,2]
[374438468,1753301439706,-48325.25212883,0.00019762,2]
[374438469,1753301439716,-212.71675304,0.00019773,2]
[374438470,1753301439725,-460.0,0.00019775,2]
[374438471,1753301439735,-460.0,0.00019775,2]
[374438472,1753301439744,-460.0,0.00019775,2]
[374438473,1753301439753,-460.0,0.00019775,2]
[374438474,1753301439763,-460.0,0.00019775,2]
[374438475,1753301439772,-460.0,0.00019776,2]
[374438476,1753301439782,-460.0,0.00019776,2]
[374438478,1753301439791,-460.0,0.00019776,2]
[374438479,1753301439800,-460.0,0.00019776,2]
[374438480,1753301439810,-460.0,0.00019776,2]
[374438481,1753301439819,-460.0,0.00019776,2]
[374438482,1753301439828,-460.0,0.00019776,2]
[374438483,1753301439838,-460.0,0.00019776,2]
[374438484,1753301439847,-460.0,0.00019776,2]
[374438485,1753301439856,-460.0,0.00019776,2]
[374438486,1753301439865,-460.0,0.00019776,2]
[374438487,1753301439875,-460.0,0.00019776,2]
[374438488,1753301439884,-220.67,0.00019776,2]
[374438489,1753301439894,-460.0,0.00019776,2]
[374438490,1753301439903,-460.0,0.00019776,2]
[374438491,1753301439912,-460.0,0.00019776,2]
[374438492,1753301439923,-460.0,0.00019776,2]
[374438493,1753301439932,-460.0,0.00019776,2]
[374438494,1753301439941,-460.0,0.00019776,2]
[374438495,1753301439951,-460.0,0.00019776,2]
[374438496,1753301439960,-460.0,0.00019776,2]
[374438497,1753301439970,-460.0,0.00019776,2]
[374438498,1753301439979,-461.21925165,0.00019776,2]
[374438499,1753301439988,-460.0,0.00019776,2]
[374438500,1753301439997,-460.0,0.00019776,2]
[374438501,1753301440007,-460.0,0.00019776,2]
[374438502,1753301440017,-460.0,0.00019776,2]
[374438503,1753301440026,-460.0,0.00019776,2]
[374438504,1753301440035,-460.0,0.00019776,2]
[374438505,1753301440045,-460.0,0.00019776,2]
[374438507,1753301440055,-460.0,0.00019776,2]
[374438508,1753301440064,-460.0,0.00019776,2]
[374438509,1753301440075,-460.0,0.00019776,2]
[374438510,1753301440084,-460.0,0.00019776,2]
[374438512,1753301440094,-460.0,0.00019778,2]
[374438514,1753301440104,-230.69504017,0.00019778,2]
[374438516,1753301440113,-460.0,0.00019778,2]
[374438518,1753301440123,-460.0,0.00019778,2]
[374438520,1753301440132,-460.0,0.00019778,2]
[374438522,1753301440142,-307.39370806,0.00019873,2]
[374438524,1753301440152,-548.68092052,0.00019873,2]
[374438526,1753301440161,-1328.93,0.00019875,2]
[374438528,1753301440171,-460.0,0.00019875,2]
[374438530,1753301440181,-460.0,0.00019875,2]
[374438532,1753301440191,-460.0,0.00019877,2]
[374438534,1753301440200,-618.56,0.00019877,2]
[374438536,1753301440209,-460.0,0.00019877,2]
[374438538,1753301440219,-597.85,0.00019877,2]
[374438540,1753301440229,-476.98,0.00019877,2]
[374438542,1753301440238,-460.0,0.00019877,2]
[374438544,1753301440248,-179.73040439,0.00019966,2]
[374438546,1753301440258,-460.0,0.00020028,2]
[374438548,1753301440268,-460.0,0.0002003,2]
[374438550,1753301440278,-460.0,0.0002003,2]
[374438552,1753301440288,-460.0,0.0002003,2]
[374438554,1753301440297,-460.0,0.0002003,2]
[374438556,1753301440306,-767.37,0.0002003,2]
[374438559,1753301440316,-460.0,0.0002003,2]
[374438561,1753301440325,-705.69,0.00020031,2]
[374438563,1753301440334,-460.0,0.00020031,2]
[374438565,1753301440344,-460.0,0.00020031,2]
[374438567,1753301440353,-1350.47,0.00020031,2]
[374438569,1753301440362,-661.67,0.00020031,2]
[374438571,1753301440371,-539.13,0.00020031,2]
[374438573,1753301440381,-469.74,0.00020031,2]
[374438575,1753301440390,-460.0,0.00020031,2]
[374438577,1753301440399,-460.0,0.00020031,2]
[374438579,1753301440409,-460.0,0.00020031,2]
[374438581,1753301440418,-460.0,0.00020031,2]
[374438583,1753301440430,-460.0,0.00020031,2]
[374438585,1753301440443,-460.0,0.00020032,2]
[374438587,1753301440452,-460.0,0.00020032,2]
[374438589,1753301440462,-252.60607937,0.00020032,2]
[374438591,1753301440471,-503.0238588,0.00020032,2]
[374438593,1753301440481,-460.0,0.00020032,2]
[374438595,1753301440490,-292.71564757,0.00020032,2]
[374438597,1753301440500,-460.0,0.00020032,2]
[374438599,1753301440509,-460.0,0.00020032,2]
[374438601,1753301440520,-460.0,0.00020032,2]
[374438603,1753301440531,-460.0,0.00020032,2]
[374438605,1753301440540,-460.0,0.00020032,2]
[374438607,1753301440549,-323.33328266,0.00020032,2]
[374438609,1753301440559,-460.0,0.00020032,2]
[374438611,1753301440568,-460.0,0.00020032,2]
[374438612,1753301440577,-460.0,0.00020032,2]
[374438614,1753301440586,-460.0,0.00020032,2]
[374438616,1753301440595,-460.0,0.00020032,2]
[374438618,1753301440605,-460.0,0.00020032,2]
[374438620,1753301440614,-460.0,0.00020032,2]
[374438622,1753301440623,-460.0,0.00020032,2]
[374438624,1753301440632,-460.0,0.00020032,2]
[374438626,1753301440642,-460.0,0.00020032,2]
[374438628,1753301440651,-370.96,0.00020032,2]
[374438630,1753301440660,-460.0,0.00020032,2]
[374438632,1753301440670,-385.35351005,0.00020032,2]
[374438634,1753301440682,-460.0,0.00020032,2]
[374438636,1753301440691,-539.16,0.00020033,2]
[374438638,1753301440700,-460.0,0.00020033,2]
[374438641,1753301440710,-460.0,0.00020035,2]
[374438643,1753301440723,-460.0,0.00020035,2]
[374438645,1753301440733,-460.0,0.00020035,2]
[374438647,1753301440743,-460.0,0.00020035,2]
[374438649,1753301440752,-460.0,0.00020035,2]
[374438651,1753301440762,-460.0,0.00020035,2]
[374438653,1753301440771,-460.0,0.00020035,2]
[374438655,1753301440780,-238.96923298,0.00020049,2]
[374438657,1753301440790,-460.0,0.00020049,2]
[374438659,1753301440799,-460.0,0.0002005,2]
[374438660,1753301440808,-460.0,0.0002005,2]
[374438662,1753301440818,-460.0,0.0002005,2]
[374438666,1753301440829,-460.0,0.0002005,2]
[374438667,1753301440839,-460.0,0.0002005,2]
[374438669,1753301440848,-460.0,0.0002005,2]
[374438671,1753301440858,-460.0,0.0002005,2]
[374438673,1753301440868,-535.96,0.0002005,2]
[374438675,1753301440878,-460.0,0.0002005,2]
[374438677,1753301440887,-460.0,0.0002005,2]
[374438679,1753301440897,-460.0,0.00020052,2]
[374438681,1753301440907,-1328.93,0.00020149,2]
[374438683,1753301440916,-460.0,0.00020149,2]
[374438685,1753301440927,-460.0,0.00020149,2]
[374438687,1753301440937,-460.0,0.00020151,2]
[374438689,1753301440946,-618.56,0.00020151,2]
[374438691,1753301440956,-460.0,0.00020151,2]
[374438693,1753301440965,-597.85,0.00020151,2]
[374438695,1753301440975,-476.98,0.00020151,2]
[374438697,1753301440984,-460.0,0.00020151,2]
[374438699,1753301440993,-273.552831,0.00020187,2]
[374438701,1753301441002,-460.0,0.00020304,2]
[374438703,1753301441012,-438.41695309,0.00020304,2]
[374438705,1753301441021,-767.37,0.00020304,2]
[374438707,1753301441031,-281.05963813,0.00020304,2]
[374438709,1753301441040,-500.79197101,0.00020305,2]
[374438735,1753301441293,-204.89802899,0.00020305,2]
[374438737,1753301441302,-460.0,0.00020305,2]
[374438739,1753301441312,-1350.47,0.00020305,2]
[374438741,1753301441321,-661.67,0.00020305,2]
[374438743,1753301441330,-469.74,0.00020305,2]
[374438745,1753301441340,-460.0,0.00020305,2]
[374438747,1753301441349,-460.0,0.00020305,2]
[374438749,1753301441359,-580.0,0.00020306,2]
[374438751,1753301441368,-460.0,0.00020306,2]
[374438753,1753301441377,-460.0,0.00020306,2]
[374438755,1753301441386,-460.0,0.00020306,2]
[374438756,1753301441395,-460.0,0.00020306,2]
[374438758,1753301441404,-460.0,0.00020306,2]
[374438760,1753301441414,-460.0,0.00020306,2]
[374438762,1753301441426,-510.99,0.00020306,2]
[374438764,1753301441438,-460.0,0.00020306,2]
[374438765,1753301441448,-460.0,0.00020306,2]
[374438766,1753301441458,-460.0,0.00020306,2]
[374438767,1753301441468,-460.0,0.00020306,2]
[374438768,1753301441480,-539.16,0.00020307,2]
[374438769,1753301441490,-460.0,0.00020307,2]
[374438771,1753301441500,-405.95645444,0.00020309,2]
[374438773,1753301441511,-460.0,0.00020309,2]
[374438774,1753301441520,-460.0,0.00020309,2]
[374438775,1753301441529,-460.0,0.00020309,2]
[374438776,1753301441538,-460.0,0.00020309,2]
[374438777,1753301441547,-460.0,0.00020323,2]
[374438779,1753301441559,-460.0,0.00020324,2]
[374438780,1753301441569,-460.0,0.00020324,2]
[374438781,1753301441581,-460.0,0.00020324,2]
[374438783,1753301441590,-460.0,0.00020324,2]
[374438785,1753301441601,-460.0,0.00020324,2]
[374438787,1753301441612,-194.33,0.00020354,2]
[374438789,1753301441621,-1328.93,0.00020423,2]
[374438790,1753301441631,-460.0,0.00020423,2]
[374438791,1753301441641,-460.0,0.00020423,2]
[374438792,1753301441650,-460.0,0.00020425,2]
[374438793,1753301441661,-618.56,0.00020425,2]
[374438794,1753301441671,-597.85,0.00020425,2]
[374438795,1753301441683,-476.98,0.00020425,2]
[374438796,1753301441693,-460.0,0.00020425,2]
[374438797,1753301441702,-800.95951481,0.00020497,2]
[374438798,1753301441712,-274.01531446,0.0002054,2]
[374438799,1753301441722,-460.0,0.00020578,2]
[374438800,1753301441731,-767.37,0.00020578,2]
[374438801,1753301441741,-705.69,0.00020579,2]
[374438802,1753301441750,-460.0,0.00020579,2]
[374438803,1753301441760,-1350.47,0.00020579,2]
[374438804,1753301441769,-661.67,0.00020579,2]
[374438805,1753301441779,-469.74,0.00020579,2]
[374438806,1753301441788,-460.0,0.00020579,2]
[374438807,1753301441798,-460.0,0.00020579,2]
[374438808,1753301441808,-460.0,0.0002058,2]
[374438809,1753301441818,-460.0,0.0002058,2]
[374438810,1753301441827,-460.0,0.0002058,2]
[374438811,1753301441839,-460.0,0.0002058,2]
[374438812,1753301441848,-460.0,0.0002058,2]
[374438813,1753301441858,-460.0,0.0002058,2]
[374438814,1753301441867,-460.0,0.0002058,2]
[374438815,1753301441876,-460.0,0.0002058,2]
[374438816,1753301441887,-460.0,0.0002058,2]
[374438817,1753301441896,-539.16,0.00020581,2]
[374438818,1753301441906,-460.0,0.00020581,2]
[374438819,1753301441915,-573.91063043,0.00020583,2]
[374438820,1753301441926,-460.0,0.00020583,2]
[374438821,1753301441936,-460.0,0.00020583,2]
[374438822,1753301441946,-460.0,0.00020583,2]
[374438823,1753301441956,-460.0,0.00020597,2]
[374438824,1753301441965,-460.0,0.00020598,2]
[374438825,1753301441975,-460.0,0.00020598,2]
[374438826,1753301441984,-460.0,0.00020598,2]
[374438827,1753301441993,-460.0,0.00020598,2]
[374438828,1753301442003,-151.0,0.00020663,2]
[374438829,1753301442012,-3801.642,0.00020663,2]
[374438830,1753301442022,-151.0,0.00020663,2]
[374438831,1753301442031,-151.0,0.00020663,2]
[374438832,1753301442045,-215.0738,0.00020663,2]
[374438833,1753301442055,-151.0,0.00020663,2]
[374438834,1753301442064,-151.0,0.00020663,2]
[374438835,1753301442074,-151.0,0.00020663,2]
[374438836,1753301442083,-151.0,0.00020663,2]
[374438837,1753301442092,-151.0,0.00020663,2]
[374438838,1753301442101,-151.0,0.00020663,2]
[374438839,1753301442110,-151.0,0.00020663,2]
[374438840,1753301442120,-151.0,0.00020663,2]
[374438841,1753301442129,-151.0,0.00020663,2]
[374438842,1753301442138,-151.0,0.00020663,2]
[374438843,1753301442149,-151.0,0.00020663,2]
[374438844,1753301442159,-151.0,0.00020663,2]
[374438845,1753301442168,-151.0,0.00020663,2]
[374438846,1753301442180,-151.0,0.00020663,2]